bitfinex/quotes_SOLUSD_20250818
["timestamp","ask_amount","ask_price","bid_price","bid_amount"]
[1755540343165,3.64473943,184.34,184.3,5.45591159]
[1755540343337,3.64473943,184.33,184.3,5.45591159]
[1755540343663,3.64473943,184.34,184.3,6.16591159]
[1755540343865,3.64473943,184.33,184.3,6.16591159]
[1755540344067,4.36473943,184.34,184.3,5.45591159]
[1755540344272,8.93376117,184.31,184.3,0.03]
[1755540344444,13.37433475,184.31,184.3,0.03]
[1755540344768,14.09433475,184.31,184.3,0.03]
[1755540345443,40.23649632,184.31,184.3,0.03]
[1755540346052,45.6621379,184.31,184.3,0.03]
[1755540346463,48.93244508,184.31,184.3,0.03]
[1755540348549,34.55871233,184.31,184.3,0.03]
[1755540348750,16.78585897,184.31,184.3,0.03]
[1755540349255,16.78499209,184.31,184.3,0.03]
[1755540349455,13.13891409,184.31,184.3,0.03]
[1755540349655,16.78499209,184.31,184.3,0.03]
[1755540350071,13.13891409,184.31,184.3,0.03]
[1755540350278,16.78499209,184.31,184.3,0.03]
[1755540350666,13.13891409,184.31,184.3,0.03]
[1755540350973,16.78499209,184.31,184.3,0.03]
[1755540351361,13.13891409,184.31,184.3,0.03]
[1755540351661,16.78499209,184.31,184.3,0.03]
[1755540352251,13.13891409,184.31,184.3,0.03]
[1755540352456,16.78499209,184.31,184.3,0.03]
[1755540352664,13.13891409,184.31,184.3,0.03]
[1755540352871,17.50499209,184.31,184.3,0.03]
[1755540353073,48.93063367,184.31,184.3,0.03]
[1755540355183,88.11063367,184.31,184.3,0.03]
[1755540356680,84.06102779,184.31,184.3,0.03]
[1755540356885,78.63538621,184.31,184.3,0.03]
[1755540357083,82.68830278,184.31,184.3,0.03]
[1755540357565,88.11394436,184.31,184.3,0.03]
[1755540357765,77.91538621,184.31,184.3,0.03]
[1755540357967,12.59322464,184.31,184.3,0.03]
[1755540358486,3.646078,184.32,184.3,0.74]
[1755540358661,7.69907049,184.31,184.3,0.74]
[1755540358862,4.05283629,184.31,184.3,0.74]
[1755540359276,7.69891429,184.31,184.3,0.74]
[1755540359459,4.05283629,184.31,184.3,0.03]
[1755540359676,7.84107586,184.31,184.3,0.03]
[1755540359970,7.84113882,184.31,184.3,0.03]
[1755540360377,16.78828546,184.31,184.3,0.03]
[1755540360563,16.78806087,184.31,184.3,0.03]
[1755540361591,7.84091423,184.31,184.3,0.03]
[1755540361805,4.05267466,184.31,184.3,9.68714664]
[1755540361958,7.69875266,184.32,184.3,9.68714664]
[1755540362167,3.646078,184.34,184.31,9.65714664]
[1755540362375,4.05205788,184.33,184.32,0.71]
[1755540362691,4.05205788,184.33,184.3,0.03]
[1755540362861,4.05205788,184.33,184.31,8.94714664]
[1755540363061,7.69813588,184.33,184.32,0.71]
[1755540363281,4.05205788,184.33,184.32,0.71]
[1755540363505,7.69813588,184.33,184.32,0.71]
[1755540363690,4.05205788,184.33,184.32,0.71]
[1755540363890,7.69813588,184.33,184.32,0.71]
[1755540364097,4.05205788,184.33,184.32,0.71]
[1755540364304,4.05205788,184.33,184.32,15.08249386]
[1755540364685,0.06,184.35,184.32,15.08249386]
[1755540364899,0.06,184.35,184.34,8.94714664]
[1755540365301,0.06,184.35,184.34,9.65714664]
[1755540366002,0.06,184.35,184.34,15.08190523]
[1755540366308,0.06,184.35,184.34,6.13475859]
[1755540366618,0.06,184.35,184.34,0.71]
[1755540368709,9.781788,184.35,184.31,0.71]
[1755540368902,9.721788,184.34,184.31,0.71]
[1755540369227,0.06,184.35,184.32,0.71]
[1755540369398,4.05110985,184.34,184.32,6.38085559]
[1755540369587,0.06,184.35,184.33,0.71]
[1755540370019,0.06,184.35,184.34,0.71]
[1755540371419,0.06,184.35,184.32,0.71]
[1755540371713,4.11072529,184.35,184.32,0.71]
[1755540371927,5.67085559,184.33,184.3,0.03]
[1755540372131,5.67085559,184.31,184.3,0.03]
[1755540372429,9.86374245,184.31,184.3,0.03]
[1755540372587,14.16912627,184.31,184.3,0.03]
[1755540372786,10.52374245,184.31,184.3,0.03]
[1755540373020,40.16912627,184.31,184.3,0.03]
[1755540374113,13.50912627,184.31,184.3,0.03]
[1755540374324,7.83827068,184.31,184.3,0.03]
[1755540374487,7.69610911,184.31,184.3,0.03]
[1755540374688,3.64538382,184.32,184.3,0.74]
[1755540374891,5.73085559,184.35,184.3,6.41085559]
[1755540375219,0.06,184.35,184.34,5.67085559]
[1755540375518,0.06,184.35,184.3,0.03]
[1755540375519,0.06,184.35,184.3,5.70085559]
[1755540375712,4.10982144,184.35,184.34,0.71]
[1755540376619,0.06,184.35,184.34,11.80561418]
[1755540378092,0.06,184.35,184.34,6.13475859]
[1755540380020,0.06,184.35,184.32,15.06948436]
[1755540380230,0.06,184.35,184.33,0.71]
[1755540380924,0.06,184.35,184.32,5.42532391]
[1755540381095,0.06,184.35,184.34,0.71]
[1755540382440,9.65416045,184.35,184.3,0.74]
[1755540382614,12.98139519,184.34,184.31,0.71]
[1755540382914,0.20216157,184.35,184.31,0.71]
[1755540383110,8.93416045,184.34,184.31,0.71]
[1755540383513,9.13632202,184.35,184.32,0.71]
[1755540383714,4.04809819,184.34,184.32,0.71]
[1755540384022,0.06,184.35,184.33,9.64416045]
[1755540384200,0.06,184.35,184.34,14.35891904]
[1755540384404,0.06,184.35,184.34,0.71]
[1755540385201,0.06,184.35,184.34,6.13475859]
[1755540386596,0.06,184.35,184.31,0.71]
[1755540386791,0.06,184.35,184.3,36.69004797]
[1755540387002,0.06,184.35,184.32,9.64416045]
[1755540387641,0.06,184.35,184.34,8.93416045]
[1755540387930,0.06,184.35,184.33,9.64416045]
[1755540388219,0.06,184.35,184.33,8.93416045]
[1755540388435,0.06,184.35,184.34,0.71]
[1755540388630,0.06,184.35,184.34,6.13475859]
[1755540388827,0.14216157,184.34,184.3,0.03]
[1755540389003,8.93416045,184.33,184.3,0.03]
[1755540389198,0.14216157,184.34,184.3,0.03]
[1755540389415,9.07632202,184.34,184.3,0.74]
[1755540390397,3.70162893,184.35,184.31,0.71]
[1755540390622,4.04740988,184.34,184.32,0.71]
[1755540390809,3.702255,184.35,184.31,9.64416045]
[1755540391128,12.98158403,184.34,184.3,0.03]
[1755540391325,8.93416045,184.34,184.3,0.03]
[1755540391525,13.64247133,184.33,184.3,0.03]
[1755540391707,9.07632202,184.31,184.3,0.03]
[1755540392026,13.12509444,184.31,184.3,0.03]
[1755540392205,13.78509444,184.31,184.3,0.03]
[1755540392402,17.42913853,184.31,184.3,0.03]
[1755540392605,34.31695159,184.31,184.3,0.03]
[1755540392922,32.5353541,184.31,184.3,0.03]
[1755540393726,16.76913853,184.31,184.3,0.03]
[1755540393914,7.69281651,184.31,184.3,0.03]
[1755540394227,4.04877242,184.31,184.3,0.03]
[1755540395225,12.98415051,184.31,184.3,0.03]
[1755540395605,12.98461328,184.31,184.3,0.03]
[1755540396931,13.12677485,184.31,184.3,0.03]
[1755540397111,17.43081894,184.31,184.3,0.03]
[1755540397307,13.12677485,184.31,184.3,0.03]
[1755540398321,16.77081894,184.31,184.3,0.03]
[1755540399006,13.12677485,184.31,184.3,0.03]
[1755540399206,17.48081894,184.31,184.3,0.03]
[1755540399606,13.83677485,184.31,184.3,0.03]
[1755540399812,17.48081894,184.31,184.3,0.03]
[1755540400432,14.22274588,184.31,184.3,0.03]
[1755540401110,29.32896145,184.31,184.3,0.03]
[1755540402227,73.93460303,184.31,184.3,0.03]
[1755540402909,78.48992495,184.31,184.3,0.03]
[1755540403316,41.10621557,184.29,184.28,0.03]
[1755540403528,59.1780125,184.29,184.28,0.03]
[1755540403706,59.8880125,184.29,184.28,0.03]
[1755540403901,55.83755967,184.29,184.28,0.03]
[1755540404145,55.331102,184.29,184.28,0.03]
[1755540405761,54.621102,184.29,184.28,0.03]
[1755540405933,60.75733239,184.29,184.28,0.03]
[1755540406133,7.69663747,184.29,184.28,0.03]
[1755540406367,3.64404409,184.32,184.28,0.72]
[1755540406546,4.04850666,184.31,184.28,0.72]
[1755540407158,4.04850666,184.3,184.29,0.69]
[1755540407343,0.14216157,184.29,184.28,0.03]
[1755540407545,9.86675562,184.29,184.28,0.03]
[1755540409166,9.72459405,184.29,184.28,0.03]
[1755540409335,9.86675562,184.29,184.28,0.03]
[1755540409641,4.04850666,184.29,184.28,0.72]
[1755540409844,3.64404409,184.31,184.28,0.72]
[1755540410052,9.32013148,184.33,184.28,0.72]
[1755540410238,54.34621557,184.35,184.28,0.72]
[1755540410239,9.72313904,184.32,184.29,0.69]
[1755540410433,4.04733104,184.31,184.28,0.03]
[1755540410633,5.67608739,184.32,184.28,0.03]
[1755540410865,4.04748117,184.31,184.29,0.69]
[1755540411052,9.72356856,184.31,184.28,0.03]
[1755540411358,9.8660102,184.3,184.28,0.03]
[1755540411563,5.67608739,184.29,184.28,0.03]
[1755540411772,5.81824896,184.3,184.28,0.03]
[1755540411978,29.64404409,184.32,184.29,0.69]
[1755540412148,7.69191418,184.31,184.29,0.69]
[1755540412460,9.72395748,184.3,184.28,0.03]
[1755540412662,5.67608739,184.3,184.28,0.03]
[1755540414749,5.81824896,184.29,184.28,0.03]
[1755540414962,9.86666197,184.29,184.28,0.03]
[1755540415653,24.97287754,184.29,184.28,0.03]
[1755540415851,29.32692163,184.29,184.28,0.03]
[1755540416265,29.3273924,184.29,184.28,0.03]
[1755540417673,34.75362279,184.29,184.28,0.03]
[1755540419047,30.70473901,184.29,184.28,0.03]
[1755540419248,34.75317829,184.29,184.28,0.03]
[1755540419869,34.75317829,184.29,184.26,0.03]
[1755540419870,15.24837714,184.27,184.26,0.03]
[1755540420077,26.60055192,184.26,184.25,0.03]
[1755540420281,33.88239952,184.26,184.25,0.03]
[1755540420572,26.14216157,184.23,184.22,0.03]
[1755540420763,78.67073233,184.23,184.22,0.03]
[1755540420958,79.38073233,184.23,184.22,0.03]
[1755540421154,84.80872994,184.23,184.22,0.03]
[1755540421671,79.38154598,184.23,184.22,0.03]
[1755540421876,78.67154598,184.23,184.22,0.03]
[1755540422379,84.09954359,184.23,184.22,0.03]
[1755540422683,84.80954359,184.23,184.22,0.03]
[1755540423050,84.09954359,184.23,184.22,0.03]
[1755540423266,84.80954359,184.23,184.22,0.03]
[1755540424457,84.80426079,184.23,184.22,0.03]
[1755540424895,26.0,184.19,184.16,0.03]
[1755540425079,20.92446453,184.17,184.16,0.03]
[1755540425676,26.3542305,184.17,184.16,0.03]
[1755540426882,5.81824896,184.17,184.16,0.72]
[1755540427895,0.14216157,184.17,184.16,0.72]
[1755540428208,5.67608739,184.21,184.16,0.72]
[1755540428375,4.03834555,184.2,184.16,0.72]
[1755540428572,5.67608739,184.2,184.16,0.72]
[1755540429490,5.67608739,184.23,184.17,5.67608739]
[1755540429695,44.85608739,184.23,184.18,6.38608739]
[1755540430004,4.61545162,184.3,184.21,5.67608739]
[1755540430195,5.67608739,184.28,184.23,5.67608739]
[1755540430381,4.03833463,184.27,184.22,8.94473231]
[1755540430575,4.03833463,184.27,184.24,0.71]
[1755540430889,9.00473231,184.3,184.25,8.94473231]
[1755540431201,0.06,184.3,184.26,9.65473231]
[1755540431400,0.06,184.3,184.28,5.42652485]
[1755540431600,0.06,184.3,184.29,8.94473231]
[1755540431786,0.06,184.32,184.29,9.65473231]
[1755540431984,0.06,184.32,184.3,9.65473231]
[1755540432300,0.06,184.32,184.3,0.71]
[1755540432608,0.06,184.32,184.27,0.71]
[1755540432609,8.94473231,184.31,184.27,0.71]
[1755540432829,8.94473231,184.29,184.23,8.94473231]
[1755540433001,8.94473231,184.29,184.21,52.75107169]
[1755540433002,8.94473231,184.28,184.27,0.71]
[1755540433380,3.69467128,184.32,184.27,0.71]
[1755540433381,0.14216157,184.31,184.27,0.71]
[1755540433689,8.94473231,184.3,184.28,0.71]
[1755540433916,8.94473231,184.29,184.26,0.71]
[1755540434098,8.94473231,184.28,184.26,0.71]
[1755540434280,8.94473231,184.28,184.23,14.37269101]
[1755540434614,8.94473231,184.29,184.27,0.71]
[1755540434791,8.94473231,184.29,184.23,14.37269101]
[1755540434792,8.94473231,184.29,184.28,0.71]
[1755540434989,8.94473231,184.3,184.28,0.71]
[1755540435197,8.94473231,184.3,184.24,8.94473231]
[1755540435396,8.94473231,184.3,184.29,0.71]
[1755540435397,9.08689388,184.3,184.29,0.71]
[1755540435586,3.69467128,184.32,184.29,15.0809627]
[1755540435779,3.69467128,184.32,184.31,8.94473231]
[1755540435780,0.06,184.32,184.31,8.94473231]
[1755540435993,0.06,184.32,184.31,0.71]
[1755540436210,0.06,184.32,184.31,9.65473231]
[1755540436714,0.06,184.32,184.31,0.71]
[1755540437208,0.06,184.32,184.31,9.65473231]
[1755540437409,0.06,184.32,184.31,15.08037389]
[1755540438606,0.06,184.32,184.28,0.71]
[1755540438607,9.00473231,184.32,184.28,0.71]
[1755540438811,8.94473231,184.31,184.26,6.13711386]
[1755540439114,8.94473231,184.31,184.27,0.71]
[1755540439316,8.94473231,184.31,184.28,0.71]
[1755540439527,8.94473231,184.29,184.22,0.71]
[1755540439812,8.94473231,184.25,184.22,0.71]
[1755540440112,8.94473231,184.26,184.22,0.71]
[1755540440286,8.94473231,184.25,184.21,5.42858693]
[1755540440488,8.94473231,184.25,184.22,0.71]
[1755540440881,8.94473231,184.26,184.22,0.71]
[1755540441086,8.94473231,184.27,184.23,0.71]
[1755540441302,8.94473231,184.26,184.23,0.71]
[1755540441712,26.0,184.28,184.24,0.71]
[1755540442007,8.94473231,184.27,184.24,0.71]
[1755540442208,0.14216157,184.3,184.25,0.71]
[1755540442419,8.94473231,184.29,184.26,0.71]
[1755540442715,8.94473231,184.29,184.24,0.71]
[1755540443022,8.94473231,184.29,184.25,0.71]
[1755540443223,8.94473231,184.29,184.26,0.71]
[1755540443720,8.94473231,184.3,184.27,0.71]
[1755540443926,8.94473231,184.31,184.27,0.71]
[1755540444104,8.94473231,184.3,184.25,5.42740841]
[1755540444513,8.94473231,184.3,184.26,0.71]
[1755540444826,8.94473231,184.3,184.27,0.71]
[1755540445006,8.94473231,184.3,184.25,5.42740841]
[1755540445212,8.94473231,184.3,184.25,6.13740841]
[1755540445530,8.94473231,184.29,184.25,6.13740841]
[1755540446604,0.06,184.32,184.27,8.94473231]
[1755540446805,0.06,184.32,184.28,9.65473231]
[1755540447309,8.94473231,184.3,184.25,45.31740841]
[1755540447518,8.94473231,184.29,184.25,44.60740841]
[1755540447722,8.94473231,184.29,184.25,39.89]
[1755540447902,0.75,184.32,184.25,39.89]
[1755540447903,8.94473231,184.28,184.25,39.18]
[1755540448103,8.94473231,184.27,184.25,39.18]
[1755540448628,8.94473231,184.26,184.23,0.71]
[1755540448830,8.94473231,184.26,184.21,6.13853649]
[1755540449000,8.94473231,184.26,184.21,0.71]
[1755540449611,8.94473231,184.26,184.21,5.4284827]
[1755540449935,8.94473231,184.26,184.22,0.71]
[1755540450310,8.94473231,184.26,184.21,14.37321501]
[1755540450510,8.94473231,184.26,184.22,0.71]
[1755540451537,0.14216157,184.27,184.22,0.71]
[1755540451833,0.83216157,184.27,184.22,0.71]
[1755540452532,0.14216157,184.27,184.23,0.71]
[1755540453031,0.14216157,184.27,184.2,9.68473231]
[1755540453032,8.94473231,184.25,184.2,9.68473231]
[1755540453230,9.63473231,184.24,184.2,0.03]
[1755540453840,8.94473231,184.22,184.2,0.03]
[1755540454024,8.94473231,184.21,184.2,0.03]
[1755540454416,8.94473231,184.22,184.2,0.03]
[1755540457720,26.0,184.24,184.2,0.03]
[1755540457721,0.14216157,184.25,184.21,0.69]
[1755540457924,0.14216157,184.26,184.22,0.69]
[1755540458127,26.0,184.28,184.22,0.69]
[1755540458323,8.94473231,184.27,184.22,0.69]
[1755540458641,8.94473231,184.26,184.22,0.69]
[1755540459153,0.14216157,184.27,184.2,0.03]
[1755540459330,8.94473231,184.22,184.2,0.03]
[1755540459836,8.94473231,184.23,184.2,0.03]
[1755540460039,9.08689388,184.24,184.2,6.14887463]
[1755540460830,8.94473231,184.28,184.23,8.94473231]
[1755540461060,8.94473231,184.28,184.23,9.63473231]
[1755540461243,9.59473231,184.28,184.23,0.69]
[1755540461546,9.59473231,184.28,184.22,8.94473231]
[1755540461760,0.14216157,184.28,184.23,9.63473231]
[1755540462043,8.94473231,184.3,184.24,9.63473231]
[1755540462246,9.08689388,184.29,184.24,9.63473231]
[1755540462542,9.59473231,184.29,184.22,0.69]
[1755540462721,9.59473231,184.28,184.22,15.06274295]
[1755540462922,8.94473231,184.29,184.23,8.94473231]
[1755540463123,8.94473231,184.29,184.23,9.63473231]
[1755540463326,8.94473231,184.29,184.23,0.69]
[1755540463623,9.59473231,184.29,184.23,9.63473231]
[1755540463823,8.94473231,184.27,184.21,45.27851175]
[1755540464018,8.94473231,184.26,184.21,45.27851175]
[1755540464444,8.94473231,184.24,184.21,39.16]
[1755540464643,8.94473231,184.23,184.2,0.03]
[1755540464814,9.59473231,184.23,184.2,0.03]
[1755540465340,26.14216157,184.27,184.2,0.03]
[1755540465341,8.94473231,184.24,184.2,0.03]
[1755540465745,8.94473231,184.23,184.2,0.03]
[1755540466242,9.59473231,184.24,184.2,0.03]
[1755540467245,0.14216157,184.24,184.2,0.03]
[1755540467546,0.14216157,184.24,184.2,0.72]
[1755540467860,26.0,184.25,184.21,0.69]
[1755540468061,8.94473231,184.26,184.22,0.69]
[1755540468520,9.59473231,184.26,184.2,8.97473231]
[1755540468716,8.94473231,184.23,184.2,0.03]
[1755540468921,0.14216157,184.24,184.2,0.03]
[1755540469123,9.08689388,184.24,184.2,0.03]
[1755540469424,9.08689388,184.24,184.2,0.72]
[1755540469849,9.73689388,184.24,184.2,0.03]
[1755540470055,0.65,184.23,184.2,0.03]
[1755540470633,9.08689388,184.24,184.2,0.03]
[1755540470842,9.73689388,184.24,184.2,0.03]
[1755540471449,0.14216157,184.24,184.2,0.03]
[1755540471643,3.63840273,184.25,184.21,0.69]
[1755540471955,3.63840273,184.25,184.22,0.69]
[1755540472759,9.31627795,184.26,184.22,0.69]
[1755540472936,4.55545162,184.29,184.25,11.10528363]
[1755540472937,3.63840273,184.29,184.25,11.10528363]
[1755540473129,4.04773517,184.28,184.26,6.36787522]
[1755540473443,3.63840273,184.3,184.26,6.36787522]
[1755540473628,4.04951128,184.29,184.27,0.69]
[1755540473827,4.04951128,184.29,184.28,0.69]
[1755540474133,3.63840273,184.31,184.28,0.69]
[1755540474441,4.05068281,184.3,184.26,6.36787522]
[1755540474634,4.05068281,184.3,184.27,6.11681934]
[1755540474840,3.69840273,184.32,184.28,6.36787522]
[1755540475042,4.05031479,184.31,184.3,5.67787522]
[1755540475350,0.06,184.32,184.3,6.36787522]
[1755540475555,0.06,184.32,184.3,0.69]
[1755540476762,0.06,184.32,184.26,8.93821063]
[1755540476763,0.65,184.31,184.26,8.93821063]
[1755540476967,13.63773283,184.31,184.25,9.62821063]
[1755540477261,9.58821063,184.31,184.25,9.62821063]
[1755540477746,9.58821063,184.31,184.29,26.0]
[1755540478068,3.69840273,184.32,184.29,26.0]
[1755540478252,0.06,184.32,184.29,34.93821063]
[1755540478442,0.06,184.32,184.29,9.62821063]
[1755540478632,0.06,184.32,184.29,8.93821063]
[1755540479031,0.06,184.32,184.29,9.62821063]
[1755540479245,0.06,184.32,184.29,0.69]
[1755540479442,0.06,184.32,184.28,5.42644944]
[1755540479648,9.58821063,184.31,184.26,5.42710285]
[1755540480050,9.1403722,184.32,184.26,14.36531348]
[1755540480238,9.1403722,184.32,184.27,9.62821063]
[1755540481265,0.06,184.32,184.28,9.62821063]
[1755540481443,13.69816592,184.32,184.26,14.36525496]
[1755540481648,0.65,184.31,184.26,14.36525496]
[1755540481858,0.65,184.31,184.26,15.05525496]
[1755540482164,0.06,184.32,184.27,9.62821063]
[1755540482464,4.11136173,184.32,184.28,0.69]
[1755540482848,0.06,184.32,184.29,0.69]
[1755540483051,0.06,184.32,184.28,8.93821063]
[1755540483243,4.11116864,184.32,184.28,9.62821063]
[1755540483443,4.11116864,184.32,184.27,5.42665013]
[1755540483664,0.06,184.32,184.27,6.11665013]
[1755540483861,4.11293584,184.32,184.28,0.69]
[1755540484364,8.93821063,184.3,184.27,22.3]
[1755540484543,8.93821063,184.3,184.25,0.69]
[1755540484544,13.23356814,184.3,184.24,53.52586772]
[1755540484744,4.05358412,184.29,184.24,53.52586772]
[1755540484943,4.05358412,184.29,184.25,8.93821063]
[1755540485145,4.05358412,184.29,184.26,9.62821063]
[1755540485352,12.58577101,184.31,184.26,9.62821063]
[1755540485675,7.70105841,184.3,184.26,9.62821063]
[1755540485874,4.05349803,184.29,184.25,8.93821063]
[1755540486174,4.70349803,184.29,184.24,8.93821063]
[1755540486371,4.70349803,184.29,184.24,9.62821063]
[1755540486876,0.65,184.29,184.24,15.05587474]
[1755540487046,4.05341188,184.29,184.25,0.69]
[1755540487367,4.05341188,184.29,184.26,0.03]
[1755540487747,13.66162251,184.29,184.26,0.03]
[1755540487957,9.60821063,184.29,184.26,0.03]
[1755540488256,4.05344211,184.28,184.26,0.03]
[1755540492772,9.60821063,184.28,184.26,0.03]
[1755540492949,4.05425335,184.27,184.26,0.03]
[1755540493144,12.99246398,184.27,184.26,0.03]
[1755540493459,32.55899627,184.27,184.26,0.03]
[1755540493663,32.55963573,184.27,184.26,0.03]
[1755540494978,0.14216157,184.22,184.2,0.03]
[1755540495151,17.45342016,184.21,184.2,0.03]
[1755540495569,13.80526501,184.21,184.2,0.03]
[1755540495765,16.78342016,184.21,184.2,0.03]
[1755540496073,13.13438198,184.21,184.2,0.03]
[1755540498376,9.87752483,184.21,184.2,0.03]
[1755540500973,10.54752483,184.21,184.2,0.03]
[1755540501152,9.87752483,184.21,184.2,0.03]
[1755540501769,5.82351505,184.21,184.2,0.03]
[1755540501981,10.5425456,184.21,184.2,0.03]
[1755540502586,10.54230535,184.21,184.2,0.03]
[1755540502761,14.1904605,184.21,184.2,0.03]
[1755540503614,19.61904743,184.21,184.2,0.03]
[1755540503895,34.725263,184.21,184.2,0.03]
[1755540504263,73.865263,184.21,184.2,0.03]
[1755540504765,73.865263,184.21,184.18,0.03]
[1755540504766,41.24837714,184.19,184.18,0.03]
[1755540504974,54.62667607,184.19,184.18,0.03]
[1755540505175,34.72585246,184.19,184.18,0.03]
[1755540506888,34.05585246,184.19,184.18,0.03]
[1755540508495,46.78756905,184.19,184.18,0.03]
[1755540508669,52.88674544,184.19,184.18,0.03]
[1755540508872,53.02890701,184.19,184.18,0.03]
[1755540509292,52.35890701,184.19,184.18,0.03]
[1755540509797,46.92973062,184.19,184.18,0.03]
[1755540510206,26.0,184.19,184.18,0.69]
[1755540510586,31.68135348,184.19,184.18,0.69]
[1755540510781,31.68135348,184.19,184.18,0.03]
[1755540510782,31.82351505,184.19,184.18,0.03]
[1755540511795,26.14216157,184.19,184.18,0.03]
[1755540512017,26.14216157,184.19,184.18,0.69]
[1755540512317,26.0,184.19,184.18,0.69]
[1755540512982,31.68135348,184.19,184.18,0.69]
[1755540513404,26.0,184.19,184.18,0.69]
[1755540513783,31.68135348,184.19,184.18,0.03]
[1755540514278,26.0,184.2,184.18,0.69]
[1755540514482,26.0,184.2,184.19,0.66]
[1755540514784,0.14216157,184.21,184.19,0.66]
[1755540514979,31.68135348,184.23,184.2,0.66]
[1755540515691,31.68135348,184.23,184.21,0.66]
[1755540516395,5.68135348,184.22,184.18,0.03]
[1755540516596,5.68135348,184.22,184.19,0.66]
[1755540517302,5.68135348,184.22,184.18,0.03]
[1755540517526,5.68135348,184.22,184.2,0.66]
[1755540518714,5.68135348,184.22,184.18,0.03]
[1755540518715,5.82351505,184.21,184.18,0.03]
[1755540518914,5.68135348,184.19,184.18,0.03]
[1755540519113,31.68135348,184.19,184.18,0.03]
[1755540519723,6.51351505,184.19,184.18,0.03]
[1755540519926,11.94269144,184.19,184.18,0.03]
[1755540520306,37.94269144,184.19,184.18,0.03]
[1755540520511,11.25269144,184.19,184.18,0.03]
[1755540520903,5.82351505,184.19,184.18,0.03]
[1755540521104,11.25269144,184.19,184.18,0.03]
[1755540522256,5.82351505,184.19,184.18,0.03]
[1755540522935,11.94269144,184.19,184.18,0.03]
[1755540524347,37.25269144,184.19,184.18,0.03]
[1755540524529,11.25269144,184.19,184.18,0.03]
[1755540525237,27.04890701,184.19,184.18,0.03]
[1755540525423,53.04890701,184.19,184.18,0.03]
[1755540525622,66.16890701,184.19,184.18,0.03]
[1755540527237,69.52284704,184.19,184.18,0.03]
[1755540528239,73.16417901,184.19,184.18,0.03]
[1755540529141,73.16608135,184.19,184.18,0.03]
[1755540529320,73.85608135,184.19,184.18,0.03]
[1755540529521,73.16608135,184.19,184.18,0.03]
[1755540530847,73.85608135,184.19,184.18,0.03]
[1755540531224,15.24837714,184.18,184.16,0.03]
[1755540531435,52.63068939,184.17,184.16,0.03]
[1755540531643,53.32068939,184.17,184.16,0.03]
[1755540532348,68.42690496,184.17,184.16,0.03]
[1755540532645,73.85667093,184.17,184.16,0.03]
[1755540532841,76.03431193,184.17,184.16,0.03]
[1755540533053,15.24837714,184.16,184.14,0.03]
[1755540533227,15.24837714,184.12,184.11,0.77544647]
[1755540533431,67.73690496,184.12,184.11,0.77544647]
[1755540533838,70.60501996,184.12,184.11,0.77544647]
[1755540534243,0.14216157,184.11,184.1,0.03]
[1755540534460,26.0,184.05,184.03,0.7]
[1755540534749,70.94351505,184.08,184.02,5.68135348]
[1755540534944,7.69714264,184.07,184.02,5.68135348]
[1755540535150,7.69714264,184.06,184.03,0.7]
[1755540535347,3.64595549,184.07,184.03,6.38135348]
[1755540535531,7.69582319,184.06,184.04,0.7]
[1755540535732,31.68135348,184.08,184.04,6.38135348]
[1755540535733,3.64595549,184.07,184.04,6.38135348]
[1755540536057,3.64595549,184.07,184.05,0.7]
[1755540537229,4.04982165,184.06,184.05,0.7]
[1755540537439,7.69473361,184.07,184.05,0.7]
[1755540537628,4.04982165,184.06,184.05,0.7]
[1755540538043,3.64491196,184.07,184.05,0.7]
[1755540538346,4.05141948,184.06,184.05,0.7]
[1755540538727,4.55709413,184.14,184.05,11.81465964]